bitfinex/quotes_SOLUSD_20250101
["timestamp","ask_amount","ask_price","bid_price","bid_amount"]
[1735765818685,20.0,194.12,194.09,10.21528578]
[1735765818890,10.21528578,194.1,194.0,1.5831]
[1735765819182,10.21528578,194.11,194.05,10.21528578]
[1735765819381,10.21528578,194.1,194.04,10.21528578]
[1735765819588,10.21528578,194.11,194.04,10.21528578]
[1735765819908,10.21528578,194.11,194.05,10.21528578]
[1735765823821,10.21528578,194.1,194.04,33.99216978]
[1735765826718,0.7698,194.17,194.04,34.00911648]
[1735765828006,23.776884,194.16,194.03,30.23223248]
[1735765828214,1.5945,194.14,194.0,1.5831]
[1735765828391,0.7698,194.13,194.01,23.776884]
[1735765828598,0.7698,194.13,194.0,11.81533248]
[1735765828790,20.0,194.12,194.0,11.81533248]
[1735765828989,0.7698,194.11,194.0,11.81533248]
[1735765829195,0.7698,194.11,194.0,1.5831]
[1735765829709,0.7698,194.11,193.99,10.23223248]
[1735765830313,0.7698,194.11,193.98,10.23223248]
[1735765830888,0.7698,194.11,194.01,10.23223248]
[1735765831119,0.7698,194.13,194.02,10.23223248]
[1735765832909,0.7698,194.13,194.04,10.23223248]
[1735765833426,0.7698,194.13,194.02,10.23223248]
[1735765833606,0.7698,194.13,194.0,23.776884]
[1735765833915,0.7698,194.13,194.02,10.23223248]
[1735765834102,0.7698,194.13,194.03,10.23223248]
[1735765834621,0.7698,194.13,194.03,20.0]
[1735765837894,0.7698,194.13,194.03,30.23223248]
[1735765842509,0.7698,194.13,194.05,10.23223248]
[1735765842720,1.5945,194.14,194.07,10.23223248]
[1735765843302,2.3643,194.14,194.07,10.23223248]
[1735765844604,1.5945,194.14,194.07,10.23223248]
[1735765844809,2.3643,194.14,194.07,10.23223248]
[1735765845239,2.3643,194.14,194.04,2.16732162]
[1735765845410,2.3643,194.14,194.04,1.39459339]
[1735765845720,2.3643,194.14,194.03,10.23223248]
[1735765849722,2.3643,194.14,194.04,34.00911648]
[1735765849923,2.3643,194.14,194.06,10.23223248]
[1735765850128,1.541,194.19,194.08,10.23223248]
[1735765850307,0.7698,194.18,194.08,10.23223248]
[1735765851724,0.7698,194.18,194.08,20.0]
[1735765853528,0.7698,194.18,194.08,30.23223248]
[1735765853727,0.7698,194.18,194.09,10.23223248]
[1735765853915,0.7698,194.18,194.1,10.23223248]
[1735765854118,0.7698,194.18,194.08,30.23223248]
[1735765855311,0.7698,194.18,194.08,20.0]
[1735765860412,0.7698,194.18,194.06,20.0]
[1735765861508,0.7698,194.18,194.07,1.4023746]
[1735765861939,0.7698,194.18,194.06,20.0]
[1735765862611,0.7698,194.18,194.07,23.776884]
[1735765863026,0.7698,194.18,194.08,1.40276304]
[1735765863622,0.7698,194.18,194.07,23.776884]
[1735765864938,0.7698,194.18,194.08,1.40277558]
[1735765865138,0.7698,194.18,194.1,20.0]
[1735765869527,0.7698,194.18,194.06,20.0]
[1735765870038,0.7698,194.18,194.04,2.39790075]
[1735765870248,0.7698,194.18,194.07,1.40238669]
[1735765870754,20.0,194.17,194.05,23.776884]
[1735765870938,0.7698,194.16,194.03,12.884]
[1735765871143,0.7698,194.16,194.06,20.0]
[1735765871655,0.7698,194.16,194.04,1.40303572]
[1735765872233,0.7698,194.16,194.05,1.40303572]
[1735765872740,0.7698,194.16,194.03,20.0]
[1735765873327,0.7698,194.16,194.04,1.40327718]
[1735765874036,0.7698,194.16,194.05,1.40327718]
[1735765874670,0.7698,194.16,194.06,1.40327718]
[1735765875458,0.7698,194.16,193.96,16.02201755]
[1735765875459,6.2546,194.1,193.96,16.02201755]
[1735765875655,0.7698,194.09,193.96,16.02201755]
[1735765875955,0.7698,194.09,194.0,20.0]
[1735765876531,0.7698,194.09,194.01,1.40399424]
[1735765877251,1.5753,194.07,193.93,8.01100877]
[1735765877428,0.7698,194.06,193.93,8.78423055]
[1735765877633,0.7698,194.06,193.96,20.0]
[1735765878150,0.7698,194.06,193.97,1.40410505]
[1735765878337,1.5753,194.07,193.97,1.40410505]
[1735765878750,1.5753,194.07,193.98,1.40410505]
[1735765878944,0.7698,194.06,193.98,1.40410505]
[1735765879436,0.7698,194.06,193.97,23.776884]
[1735765880849,0.7698,194.06,193.98,1.40384859]
[1735765881041,0.7698,194.06,193.98,0.90384859]
[1735765881741,0.7698,194.06,193.97,23.776884]
[1735765882173,0.7698,194.06,193.97,22.276884]
[1735765882339,1.5753,194.07,193.97,0.77305122]
[1735765882762,0.7698,194.09,193.97,0.77305122]
[1735765883638,0.7698,194.09,194.01,19.5]
[1735765885160,6.2546,194.1,194.02,23.776884]
[1735765886643,1.5586,194.11,194.02,23.776884]
[1735765887255,1.5586,194.11,194.05,20.0]
[1735765893681,1.5586,194.11,193.99,0.77276516]
[1735765893985,1.5586,194.11,194.02,20.0]
[1735765894488,0.7698,194.1,194.01,20.0]
[1735765894662,0.7698,194.1,193.98,12.8874]
[1735765894862,0.7698,194.1,193.99,23.776884]
[1735765895165,0.7698,194.1,194.0,1.40085389]
[1735765896085,0.7698,194.1,194.01,1.40085389]
[1735765896787,0.7698,194.1,193.99,23.776884]
[1735765897380,0.7698,194.1,194.0,1.4008384]
[1735765898382,0.7698,194.1,194.01,1.4008384]
[1735765898774,0.7698,194.1,193.99,23.776884]
[1735765899165,0.7698,194.1,194.0,1.401017]
[1735765899982,0.7698,194.1,194.02,20.0]
[1735765902182,0.7698,194.1,194.02,18.5]
[1735765903387,0.7698,194.1,193.99,23.776884]
[1735765904488,0.7698,194.1,194.0,1.40124148]
[1735765904688,6.3113,194.09,194.0,1.40124148]
[1735765904872,0.7698,194.08,194.0,1.40124148]
[1735765905283,0.7698,194.08,194.01,1.40124148]
[1735765905891,0.7698,194.08,194.02,1.40124148]
[1735765906192,0.7698,194.08,194.01,20.0]
[1735765907095,6.3113,194.09,194.01,20.0]
[1735765907488,0.7698,194.08,194.01,20.0]
[1735765907689,0.7698,194.08,194.02,1.40137263]
[1735765907995,6.3113,194.09,194.02,1.40137263]
[1735765908383,6.3113,194.09,194.01,20.0]
[1735765909100,0.7698,194.08,194.01,20.0]
[1735765909282,6.3113,194.09,194.01,20.0]
[1735765909893,6.3113,194.09,194.02,1.40190462]
[1735765910398,0.7698,194.08,194.01,20.0]
[1735765911391,6.3113,194.09,194.01,20.0]
[1735765911698,2.3284,194.11,194.01,20.0]
[1735765911995,2.3284,194.11,194.02,1.40213459]
[1735765912206,1.5586,194.11,194.02,1.40213459]
[1735765912405,0.7698,194.13,194.03,24.54969405]
[1735765912997,0.7698,194.13,194.04,1.40213459]
[1735765913483,0.7698,194.13,194.05,1.40213459]
[1735765914101,0.7698,194.13,194.03,23.776884]
[1735765914102,2.418,194.16,194.07,20.0]
[1735765914275,1.6482,194.16,194.07,20.0]
[1735765914481,0.7698,194.19,194.11,20.0]
[1735765916081,1.6482,194.21,194.1,32.8798]
[1735765916376,0.7698,194.23,194.11,0.77243097]
[1735765916703,6.1604,194.25,194.15,20.0]
[1735765916889,1.6482,194.26,194.16,0.77223191]
[1735765917298,0.7698,194.25,194.16,0.77223191]
[1735765917483,1.6482,194.26,194.17,1.40116595]
[1735765917889,1.6482,194.26,194.17,21.40116595]
[1735765918097,1.6482,194.26,194.17,20.0]
[1735765921204,1.6482,194.26,194.18,23.776884]
[1735765921498,6.1604,194.29,194.18,23.776884]
[1735765921879,0.7698,194.28,194.18,23.776884]
[1735765922503,6.1604,194.29,194.18,23.776884]
[1735765923789,1.5621,194.31,194.22,23.776884]
[1735765924190,0.7698,194.33,194.25,10.21060314]
[1735765924594,6.6302,194.34,194.25,10.21060314]
[1735765925401,6.6302,194.34,194.26,10.21060314]
[1735765925595,6.6302,194.34,194.27,10.21060314]
[1735765925906,2.3319,194.37,194.29,10.21060314]
[1735765926504,2.3319,194.37,194.25,0.77182847]
[1735765926505,2.3319,194.37,194.28,10.21060314]
[1735765928401,0.7698,194.36,194.28,10.21060314]
[1735765928984,0.7698,194.36,194.27,10.21060314]
[1735765929500,0.7698,194.36,194.28,20.0]
[1735765929906,0.7698,194.36,194.22,2.31945655]
[1735765930200,0.7698,194.36,194.24,10.21060314]
[1735765931285,0.7698,194.36,194.23,33.98748714]
[1735765931485,10.21198981,194.3,194.23,33.98887381]
[1735765931895,10.21198981,194.29,194.23,10.21198981]
[1735765934106,10.21198981,194.3,194.23,10.21198981]
[1735765934701,10.21198981,194.31,194.24,30.21198981]
[1735765935807,10.21198981,194.3,194.24,30.21198981]
[1735765937722,10.21198981,194.31,194.24,30.21198981]
[1735765939902,10.21198981,194.31,194.25,10.21198981]
[1735765940424,10.21198981,194.31,194.24,20.0]
[1735765940624,10.21198981,194.3,194.24,20.0]
[1735765940815,10.21198981,194.3,194.24,30.21198981]
[1735765942143,10.21198981,194.31,194.25,10.21198981]
[1735765945841,8.3263365,194.36,194.24,20.0]
[1735765945842,10.21198981,194.29,194.24,20.0]
[1735765946433,10.21198981,194.28,194.22,10.21198981]
[1735765946627,10.21198981,194.27,194.21,10.21198981]
[1735765946828,10.21198981,194.26,194.19,10.21198981]
[1735765947746,10.21198981,194.26,194.2,10.21198981]
[1735765948453,10.21198981,194.27,194.21,10.21198981]
[1735765948832,10.21198981,194.28,194.21,10.21198981]
[1735765949772,10.21198981,194.29,194.22,10.21198981]
[1735765950074,11.84908981,194.3,194.23,10.21198981]
[1735765950459,11.84908981,194.3,194.24,10.21198981]
[1735765950841,1.6371,194.3,194.24,10.21198981]
[1735765951246,11.84908981,194.3,194.24,10.21198981]
[1735765951740,1.6371,194.3,194.24,10.21198981]
[1735765952149,1.6371,194.3,194.25,10.21198981]
[1735765952347,6.6398,194.32,194.22,23.776884]
[1735765952540,10.21198981,194.31,194.24,10.21198981]
[1735765952965,10.21198981,194.31,194.25,10.21198981]
[1735765954765,2.3658,194.35,194.26,10.21198981]
[1735765954963,10.21198981,194.33,194.27,10.21198981]
[1735765956164,10.21198981,194.32,194.26,10.21198981]
[1735765959850,10.21198981,194.31,194.25,30.21198981]
[1735765961260,9.9223365,194.35,194.26,33.98887381]
[1735765961443,11.80798981,194.35,194.29,10.21198981]
[1735765961642,1.596,194.35,194.29,10.21198981]
[1735765961944,1.596,194.35,194.3,10.21198981]
[1735765962476,1.596,194.35,194.27,0.77177299]
[1735765962477,10.21198981,194.39,194.32,10.21198981]
[1735765963381,10.21198981,194.39,194.33,10.21198981]
[1735765963585,11.80798981,194.4,194.34,10.21198981]
[1735765963749,6.3661,194.42,194.35,10.21198981]
[1735765963957,10.21198981,194.41,194.35,10.21198981]
[1735765965548,10.21198981,194.42,194.36,10.21198981]
[1735765965763,17.28204021,194.43,194.37,10.21198981]
[1735765965970,7.0700504,194.43,194.37,10.21198981]
[1735765966368,11.80798981,194.44,194.37,10.21198981]
[1735765966550,8.3263365,194.45,194.37,10.21198981]
[1735765966750,10.21198981,194.43,194.37,10.21198981]
[1735765968251,10.21198981,194.42,194.36,10.21198981]
[1735765970189,10.21198981,194.43,194.36,10.21198981]
[1735765970982,10.21198981,194.41,194.35,30.21198981]
[1735765971183,10.21198981,194.4,194.34,10.21198981]
[1735765971550,10.21198981,194.39,194.33,30.21198981]
[1735765974172,10.21198981,194.4,194.33,30.21198981]
[1735765976082,10.21198981,194.4,194.34,30.21198981]
[1735765976288,10.21198981,194.41,194.34,30.21198981]
[1735765976993,10.21198981,194.41,194.35,10.21198981]
[1735765977458,10.21198981,194.43,194.36,10.21198981]
[1735765977663,10.21198981,194.44,194.38,10.21198981]
[1735765977875,10.21198981,194.44,194.35,23.776884]
[1735765978078,10.21198981,194.44,194.37,10.21198981]
[1735765978573,10.21198981,194.43,194.37,10.21198981]
[1735765979080,10.21198981,194.42,194.36,10.21198981]
[1735765981083,10.21198981,194.4,194.34,10.21198981]
[1735765981265,10.21198981,194.39,194.34,20.0]
[1735765981966,10.21198981,194.4,194.34,30.21198981]
[1735765982490,10.21198981,194.39,194.35,20.0]
[1735765982674,10.21198981,194.38,194.32,10.21198981]
[1735765982874,10.21198981,194.38,194.3,16.83299]
[1735765983073,10.21198981,194.37,194.31,10.21198981]
[1735765983399,13.9792365,194.43,194.28,10.21199]
[1735765983400,10.21198981,194.35,194.28,10.21199]
[1735765983640,10.21198981,194.34,194.28,10.21198981]
[1735765983806,10.21198981,194.35,194.28,10.21198981]
[1735765984136,10.98178981,194.39,194.32,10.21198981]
[1735765984507,10.21198981,194.38,194.32,10.21198981]
[1735765985128,0.7698,194.4,194.33,10.21198981]
[1735765985129,10.21198981,194.4,194.33,10.21198981]
[1735765986503,10.98178981,194.4,194.33,10.21198981]
[1735765986706,10.21198981,194.4,194.33,10.21198981]
[1735765987654,7.8398504,194.41,194.3,24.54854513]
[1735765987655,10.21198981,194.41,194.34,10.21198981]
[1735765989124,10.21198981,194.4,194.33,30.21198981]
[1735765989652,10.21198981,194.41,194.34,10.21198981]
[1735765990541,10.21198981,194.42,194.35,10.21198981]
[1735765991082,10.21198981,194.42,194.33,20.0]
[1735765991363,10.21198981,194.4,194.33,10.21198981]
[1735765993241,10.21198981,194.38,194.29,20.0]
[1735765993439,10.21198981,194.38,194.31,10.21198981]
[1735765994055,10.21198981,194.37,194.31,10.21198981]
[1735765994551,10.21198981,194.39,194.32,10.21198981]
[1735765995966,10.21198981,194.39,194.33,10.21198981]
[1735765996169,10.21198981,194.41,194.34,10.21198981]
[1735765996462,0.7698,194.42,194.35,10.21198981]
[1735765996640,10.21198981,194.41,194.35,10.21198981]
[1735765996949,10.98178981,194.41,194.34,10.21198981]
[1735765997263,10.21198981,194.39,194.33,30.21198981]
[1735765997840,10.21198981,194.4,194.33,30.21198981]
[1735765998867,10.98178981,194.39,194.33,30.21198981]
[1735765999442,10.21198981,194.39,194.33,30.21198981]
[1735766000662,0.7698,194.42,194.33,30.21198981]
[1735766000965,10.21198981,194.39,194.33,20.0]
[1735766001566,10.21198981,194.39,194.33,30.21198981]
[1735766002069,10.21198981,194.41,194.34,10.21198981]
[1735766002475,10.21198981,194.42,194.36,10.21198981]
[1735766003170,10.21198981,194.42,194.35,10.21198981]
[1735766003373,10.21198981,194.41,194.34,10.21198981]
[1735766003680,10.21198981,194.42,194.35,10.21198981]
[1735766005381,10.21198981,194.41,194.34,10.21198981]
[1735766005879,10.21198981,194.4,194.34,10.21198981]
[1735766008575,10.98178981,194.41,194.34,10.21198981]
[1735766011089,10.21198981,194.41,194.34,10.21198981]
[1735766011388,10.98178981,194.42,194.35,10.21198981]
[1735766011595,10.21198981,194.42,194.35,10.21198981]
[1735766012462,10.21198981,194.42,194.36,1.3934164]
[1735766012966,18.53832631,194.43,194.36,10.21198981]
[1735766015181,10.21198981,194.43,194.37,10.21198981]
[1735766016383,7.0700504,194.46,194.4,10.21198981]
[1735766016689,17.76852631,194.48,194.42,10.21198981]
[1735766018872,2.3362,194.5,194.43,10.21198981]
[1735766018873,10.21198981,194.49,194.43,10.21198981]
[1735766020973,10.21198981,194.49,194.42,10.21198981]
[1735766021298,10.21198981,194.47,194.41,20.0]
[1735766021464,0.7698,194.46,194.41,20.0]
[1735766021793,10.21198981,194.44,194.39,1.39312571]
[1735766021972,10.21198981,194.45,194.39,1.39312571]
[1735766022174,10.21198981,194.45,194.38,16.46428981]
[1735766022569,0.7698,194.44,194.38,16.46428981]
[1735766022775,10.21198981,194.45,194.38,16.46428981]
[1735766022982,0.7698,194.49,194.39,10.21198981]
[1735766023283,10.21198981,194.46,194.39,10.21198981]
[1735766024870,10.21198981,194.46,194.4,10.21198981]
[1735766026098,10.21198981,194.48,194.41,10.21198981]
[1735766026886,10.21198981,194.46,194.39,23.776884]
[1735766027090,10.21198981,194.46,194.4,10.21198981]
[1735766027289,10.21198981,194.47,194.41,10.21198981]
[1735766027693,10.21198981,194.48,194.41,10.21198981]
[1735766028997,10.21198981,194.48,194.42,23.776884]
[1735766030702,10.98178981,194.47,194.4,10.21198981]
[1735766031071,10.98178981,194.47,194.41,23.776884]
[1735766033091,0.7698,194.47,194.41,10.21198981]
[1735766034085,10.21198981,194.48,194.41,10.21198981]
[1735766034285,10.21198981,194.49,194.42,10.21198981]
[1735766034486,0.7698,194.48,194.42,10.21198981]
[1735766034922,10.21198981,194.49,194.42,10.21198981]
[1735766035385,7.0700504,194.51,194.42,10.21198981]
[1735766035386,10.98178981,194.48,194.42,10.21198981]
[1735766035890,10.98178981,194.48,194.41,11.76488981]
[1735766036918,7.0700504,194.51,194.41,11.76488981]
[1735766036919,0.7698,194.5,194.42,10.21198981]
[1735766037121,10.21198981,194.49,194.42,10.21198981]
[1735766040226,10.21198981,194.49,194.43,23.776884]
[1735766040430,7.8398504,194.51,194.45,33.98887381]
[1735766040609,7.0700504,194.51,194.46,10.21198981]
[1735766041728,17.76852631,194.53,194.46,10.21198981]
[1735766041935,10.98178981,194.52,194.46,10.21198981]
[1735766042137,10.21198981,194.51,194.44,10.21198981]
[1735766042496,10.21198981,194.51,194.45,23.776884]
[1735766042998,10.98178981,194.52,194.45,10.21198981]
[1735766046340,10.21198981,194.52,194.45,10.21198981]
[1735766046505,7.0700504,194.54,194.48,10.21198981]
[1735766046711,10.21198981,194.55,194.48,10.21198981]
[1735766047134,10.21198981,194.55,194.49,23.776884]
[1735766047644,10.98178981,194.54,194.49,23.776884]
[1735766048302,10.98178981,194.54,194.44,6.413]
[1735766048510,10.21198981,194.53,194.47,10.21198981]
[1735766050243,10.21198981,194.54,194.47,10.21198981]
[1735766050441,0.7698,194.57,194.48,10.21198981]
[1735766050649,0.7698,194.57,194.52,10.21198981]
[1735766050813,10.21198981,194.6,194.54,10.21198981]
[1735766051010,10.21198981,194.61,194.54,10.21198981]
[1735766051205,0.7698,194.62,194.55,10.21198981]
[1735766051453,0.7698,194.62,194.54,30.21198981]
[1735766051454,10.21198981,194.61,194.54,30.21198981]
[1735766051739,10.21198981,194.61,194.55,33.98887381]
[1735766051936,0.7698,194.63,194.57,10.21198981]
[1735766052237,10.98178981,194.65,194.59,23.776884]
[1735766053209,10.21198981,194.64,194.59,23.776884]
[1735766053404,10.21198981,194.64,194.57,10.21198981]
[1735766053405,10.21198981,194.64,194.58,23.776884]
[1735766054208,0.7698,194.66,194.55,1.5402]
[1735766054209,0.7698,194.66,194.59,33.98887381]
[1735766054418,2.2741,194.67,194.6,10.21198981]
[1735766054622,12.48608981,194.67,194.6,10.21198981]
[1735766054836,10.98178981,194.67,194.6,10.21198981]
[1735766055038,10.21198981,194.67,194.61,10.21198981]
[1735766055236,10.98178981,194.68,194.61,10.21198981]
[1735766057249,10.21198981,194.67,194.61,10.21198981]
[1735766058544,10.21198981,194.66,194.61,43.776884]
[1735766063046,0.7698,194.68,194.61,43.776884]
[1735766063250,0.7698,194.71,194.64,10.21198981]
[1735766063427,10.21198981,194.7,194.63,10.21198981]
[1735766065121,10.98178981,194.69,194.61,43.776884]
[1735766065542,10.98178981,194.69,194.63,10.21198981]
[1735766066031,10.98178981,194.69,194.63,23.776884]
[1735766067823,10.98178981,194.69,194.62,10.21198981]
[1735766068132,10.21198981,194.64,194.57,16.62618981]
[1735766068337,0.7698,194.63,194.58,23.776884]
[1735766069351,0.7698,194.63,194.57,16.62618981]
[1735766069953,10.21198981,194.64,194.58,33.98887381]
[1735766070733,10.21198981,194.65,194.6,23.776884]
[1735766070956,10.21198981,194.66,194.6,10.21198981]
[1735766071248,10.98178981,194.67,194.6,10.21198981]
[1735766073228,10.21198981,194.66,194.6,23.776884]
[1735766073429,10.98178981,194.65,194.6,23.776884]
[1735766073668,10.98178981,194.65,194.58,10.21198981]
[1735766073845,10.21198981,194.63,194.56,10.21198981]
[1735766074359,10.21198981,194.63,194.57,23.776884]
[1735766075050,10.21198981,194.63,194.56,10.21198981]
[1735766075051,0.7698,194.62,194.56,10.21198981]
[1735766075357,10.98178981,194.62,194.56,10.21198981]
[1735766075957,10.98178981,194.62,194.55,31.75218981]
[1735766076167,10.21198981,194.6,194.56,20.0]
[1735766076364,10.21198981,194.61,194.55,23.776884]
[1735766077058,10.21198981,194.61,194.56,20.0]
[1735766077862,10.98178981,194.6,194.56,20.0]
[1735766078059,10.98178981,194.6,194.53,33.98887381]
[1735766078262,10.21198981,194.59,194.53,33.98887381]
[1735766078461,0.7698,194.58,194.52,10.21198981]
[1735766078777,10.21198981,194.57,194.51,10.21198981]
[1735766078979,10.21198981,194.57,194.53,20.0]
[1735766078980,0.7698,194.56,194.53,20.0]
[1735766079450,10.21198981,194.58,194.53,20.0]
[1735766080661,0.7698,194.57,194.53,20.0]
[1735766080859,10.98178981,194.57,194.53,20.0]
[1735766081678,10.21198981,194.58,194.53,20.0]
[1735766083478,0.7698,194.57,194.53,20.0]
[1735766084383,0.7698,194.57,194.5,1.5082]
[1735766084682,0.7698,194.57,194.47,6.2167]
[1735766084683,10.21198981,194.56,194.49,10.21198981]
[1735766084882,10.21198981,194.56,194.5,23.776884]
[1735766085054,10.98178981,194.55,194.49,10.21198981]
[1735766085685,10.98178981,194.55,194.48,10.21198981]
[1735766085862,10.21198981,194.54,194.48,10.21198981]
[1735766086063,10.98178981,194.53,194.47,33.98887381]
[1735766086269,10.98178981,194.53,194.47,35.37229142]
[1735766086671,10.21198981,194.51,194.48,20.0]
[1735766087057,10.98178981,194.5,194.44,10.21198981]
[1735766087261,10.21198981,194.5,194.44,10.21198981]
[1735766087463,10.21198981,194.5,194.45,23.776884]
[1735766089779,10.21198981,194.5,194.44,10.21198981]
[1735766090084,5.1403,194.54,194.43,10.21198981]
[1735766090085,10.98178981,194.49,194.43,10.21198981]
[1735766090463,10.21198981,194.5,194.43,10.21198981]
[1735766090664,0.7698,194.49,194.43,10.21198981]
[1735766090871,10.98178981,194.49,194.43,10.21198981]
[1735766091066,10.98178981,194.49,194.42,33.98887381]
[1735766091281,10.21198981,194.48,194.42,23.776884]
[1735766091484,10.21198981,194.47,194.42,23.776884]
[1735766091684,10.98178981,194.46,194.4,10.21198981]
[1735766092062,0.7698,194.46,194.41,43.776884]
[1735766092263,0.7698,194.46,194.41,20.0]
[1735766092469,10.98178981,194.46,194.41,20.0]
[1735766093675,10.98178981,194.46,194.39,33.98887381]
[1735766094276,10.21198981,194.45,194.39,10.21198981]
[1735766094679,0.7698,194.44,194.39,10.21198981]
[1735766095588,0.7698,194.45,194.39,10.21198981]
[1735766097165,10.98178981,194.45,194.38,33.98887381]
[1735766099682,5.1419,194.48,194.4,10.21198981]
[1735766099683,0.7698,194.47,194.4,10.21198981]
[1735766099889,10.98178981,194.47,194.4,10.21198981]
[1735766100270,10.21198981,194.46,194.4,10.21198981]
[1735766100478,0.7698,194.45,194.39,10.21198981]
[1735766101883,10.98178981,194.45,194.38,33.98887381]
[1735766102078,10.21198981,194.44,194.38,23.776884]
[1735766102278,0.7698,194.43,194.38,23.776884]
[1735766102973,10.21198981,194.44,194.38,30.21198981]
[1735766103275,10.21198981,194.45,194.38,30.21198981]
[1735766103477,0.7698,194.44,194.38,30.21198981]
[1735766104687,0.7698,194.49,194.43,30.21198981]
[1735766104991,0.7698,194.49,194.44,10.21198981]
[1735766105173,0.7698,194.49,194.43,30.21198981]
[1735766105372,10.98178981,194.49,194.44,23.776884]
[1735766105593,0.7698,194.49,194.44,23.776884]
[1735766105774,10.98178981,194.5,194.44,33.98887381]
[1735766105973,10.21198981,194.53,194.46,10.21198981]
[1735766106169,10.21198981,194.53,194.47,30.21198981]
[1735766107688,10.98178981,194.55,194.47,20.0]
[1735766107890,10.98178981,194.55,194.49,10.21198981]
[1735766108195,7.42673929,194.57,194.5,10.21198981]
[1735766108382,17.6387291,194.57,194.5,10.21198981]
[1735766109195,16.8689291,194.57,194.51,10.21198981]
[1735766109695,10.21198981,194.57,194.51,10.21198981]
[1735766110399,10.21198981,194.58,194.52,10.21198981]
[1735766110591,10.21198981,194.59,194.53,10.21198981]
[1735766111589,10.21198981,194.59,194.52,10.21198981]
[1735766111892,10.21198981,194.58,194.52,23.776884]
[1735766113197,10.21198981,194.58,194.52,33.98887381]
[1735766114196,10.21198981,194.57,194.51,30.21198981]
[1735766114775,0.7698,194.61,194.51,30.21198981]
[1735766114776,10.21198981,194.58,194.52,33.98887381]
[1735766115203,10.21198981,194.59,194.52,33.98887381]
[1735766115394,10.21198981,194.58,194.52,33.98887381]
[1735766117823,10.21198981,194.58,194.52,10.21198981]
[1735766119490,10.21198981,194.58,194.52,33.98887381]
[1735766119710,10.21198981,194.6,194.54,10.21198981]
[1735766120083,0.7698,194.61,194.54,10.21198981]
[1735766120288,10.21198981,194.61,194.55,10.21198981]
[1735766122001,10.21198981,194.63,194.56,10.21198981]
[1735766122321,10.21198981,194.63,194.57,10.21198981]
[1735766123691,10.21198981,194.63,194.56,33.98887381]
[1735766123893,10.21198981,194.62,194.56,33.98887381]
[1735766124114,10.21198981,194.63,194.58,23.776884]
[1735766124706,7.42673929,194.67,194.6,23.776884]
[1735766124913,10.21198981,194.66,194.6,33.98887381]
[1735766125607,7.60473917,194.68,194.6,33.98887381]
[1735766125805,10.21198981,194.66,194.6,33.98887381]
[1735766126004,10.21198981,194.68,194.61,10.21198981]
[1735766126823,0.7698,194.71,194.63,10.21198981]
[1735766127027,10.21198981,194.69,194.63,10.21198981]
[1735766129413,10.21198981,194.7,194.63,10.21198981]
[1735766130200,10.21198981,194.7,194.64,10.21198981]
[1735766130600,10.21198981,194.7,194.63,10.21198981]
[1735766131022,10.21198981,194.69,194.62,11.72498981]
[1735766132594,0.7698,194.71,194.62,11.72498981]
[1735766132796,10.21198981,194.66,194.62,1.513]
[1735766133229,6.95882026,194.71,194.62,1.513]
[1735766133423,10.21198981,194.67,194.62,1.513]
[1735766135715,6.95882026,194.71,194.62,1.513]
[1735766135915,10.21198981,194.67,194.62,1.513]
[1735766136643,10.21198981,194.65,194.62,20.0]
[1735766137001,0.7698,194.69,194.62,20.0]
[1735766137205,10.21198981,194.65,194.62,20.0]
[1735766137834,10.21198981,194.65,194.59,10.21198981]
[1735766137835,10.21198981,194.63,194.58,1.6262]
[1735766138216,10.21198981,194.63,194.59,20.0]
[1735766138421,1.35342113,194.68,194.59,20.0]
[1735766138738,10.21198981,194.65,194.58,11.83818981]
[1735766138933,10.21198981,194.65,194.6,43.776884]
[1735766139145,10.21198981,194.67,194.61,10.21198981]
[1735766139939,1.35342113,194.68,194.61,10.21198981]
[1735766140139,10.21198981,194.68,194.62,10.21198981]
[1735766140329,10.98178981,194.7,194.63,33.98887381]
[1735766140512,10.21198981,194.7,194.63,33.98887381]
[1735766140846,10.21198981,194.7,194.64,10.21198981]
[1735766141534,5.78191891,194.72,194.64,16.71198981]
[1735766141710,10.21198981,194.71,194.64,16.71198981]
[1735766142032,5.78191891,194.72,194.65,35.61507381]
[1735766142225,10.21198981,194.72,194.65,35.61507381]
[1735766142424,10.21198981,194.72,194.66,10.21198981]
[1735766144630,15.99390872,194.77,194.7,10.21198981]
[1735766145726,10.21198981,194.73,194.66,10.21198981]
[1735766146046,10.21198981,194.73,194.67,30.21198981]
[1735766146214,10.21198981,194.74,194.69,20.0]
[1735766146409,10.21198981,194.74,194.67,10.21198981]